Cogmind - Beta 15 *** ADVENTURER MODE // 2025.09.25 @ 21:31:17 // Winter2019/RPGLIKE Player: Gallgagger Result: Self-destructed Performance ------------- Evolutions (1) 500 Regions Visited (5) 1000 Robots Destroyed (117) 585 Value Destroyed (3276) 3276 Prototype IDs (27) 540 Alien Tech Used (0) 0 Bonus (431) 431 TOTAL SCORE: 6332 Bonus ------- High Alert Combat Kills 131 Aligned with FarCom 300 Cogmind --------- Core Integrity 182/600 Matter 290/300 Energy 310/310 System Corruption 0% Temperature Cool (0) Movement Walking (120) Location -9/Exiles Parts ------- > --- POWER (2) -------- Fission Core > --- PROPULSION (4) --- Advanced Myomer Leg Advanced Myomer Leg > --- UTILITY (4) ------ Experimental Targeting Computer Hardened Light Armor Plating Hardened Light Armor Plating Hardened Light Armor Plating > --- WEAPON (3) ------- Heavy Assault Rifle Improved Assault Rifle Improved Assault Rifle > --- INVENTORY (3) ---- (None) Peak State ------------ > --- POWER ------------ Fission Core > --- PROPULSION ------- Flying Fortress v7 > --- UTILITY ---------- Experimental Targeting Computer Hardened Light Armor Plating Hardened Light Armor Plating Hardened Light Armor Plating > --- WEAPON ----------- Heavy Assault Rifle Improved Assault Rifle Improved Assault Rifle > --- INVENTORY -------- (None) [Rating: 57] Favorites ----------- Power Ion Engine Engine Ion Engine Power Core Fission Core Propulsion Wheel Leg Aluminum Leg Wheel Wheel Flight Unit Flying Fortress v7 Utility Hardened Light Armor Plating Device Improved Heat Sink Processor Experimental Targeting Computer Protection Hardened Light Armor Plating Weapon Improved Assault Rifle Energy Gun Beam Rifle Energy Cannon Beam Cannon Ballistic Gun Improved Assault Rifle Ballistic Cannon Light Cannon Build | -11 -10 -10 -9 -9 -9 ------- Run | Yrd Mat Min Mat Min Exi Slots Evolved 9 | 4 3 . . 1 1 Power 1 | 1 . . . . . Propulsion 3 | 1 1 . . . 1 Utility 3 | 1 1 . . 1 . Weapon 2 | 1 1 . . . . Parts Attached 35 | 5 13 2 9 2 4 Power 4 | 2 . . 1 1 . Engine 3 | 2 . . 1 . . Core 1 | . . . . 1 . Reactor . | . . . . . . Propulsion 10 | 2 2 . 3 . 3 Treads . | . . . . . . Leg 5 | . . . 3 . 2 Wheel 4 | 2 2 . . . . Hover . | . . . . . . Flight 1 | . . . . . 1 Utility 8 | . 5 1 . 1 1 Device 2 | . 1 1 . . . Storage . | . . . . . . Processor 1 | . . . . . 1 Hackware . | . . . . . . Protection 5 | . 4 . . 1 . Artifact . | . . . . . . Weapon 13 | 1 6 1 5 . . Energy Gun 3 | . 3 . . . . Energy Cannon 1 | . 1 . . . . Ballistic Gun 8 | 1 1 1 5 . . Ballistic Cannon 1 | . 1 . . . . Launcher . | . . . . . . Special Weapon . | . . . . . . Impact Weapon . | . . . . . . Slashing Weapon . | . . . . . . Piercing Weapon . | . . . . . . Special Melee Weapon . | . . . . . . Unidentified Prototypes 4 | . . 1 1 . 2 Parts Lost . | . . . . . . Power . | . . . . . . Propulsion . | . . . . . . Utility . | . . . . . . Weapon . | . . . . . . Highest Loss Streak . | . . . . . . To Critical Strikes . | . . . . . . Average Backups 1 | . . . 1 2 1 Power . | . . . . . . Propulsion . | . . . . 1 . Utility . | . . . . . . Weapon . | . . . 1 1 . Tool/Special . | . . . . . . Unused Backups 12 | . . . 1 . 11 Power 3 | . . . . . 3 Propulsion 1 | . . . . . 1 Utility 7 | . . . . . 7 Weapon 1 | . . . 1 . . Tool/Special . | . . . . . . Average Slot Usage (%) 88 | . 88 89 90 90 79 Engine 8 | . 17 9 9 3 . Core 1 | . . . . 4 7 Leg 12 | . . . 19 25 12 Wheel 11 | . 25 27 7 . . Protection 26 | . 17 26 27 31 31 Energy Gun 5 | . 6 22 2 . . Ballistic Gun 19 | . 11 4 24 25 23 Peak Build Rating 57 | 5 16 26 22 28 57 Average Rating 20 | 3 10 17 19 24 39 On Entrance 14 | . 5 16 18 21 26 Naked Turns . | . . . . . . Heaviest Build 41 | 11 29 30 31 41 41 Greatest Support 60 | 20 36 30 33 43 60 Greatest Overweight (x) 1 | . 1 . 1 . . Average Overweight (x) . | . . . . . . Largest Inventory Capacity 3 | . 2 3 3 3 3 Average Capacity 2 | . . 2 3 3 3 Most Carried 3 | . 2 3 3 3 3 Average Carried 2 | . . 2 2 3 1 Final Capacity 3 | . 2 3 3 3 3 Final Carried 3 | . 2 3 3 3 . Class Distribution -------------------- 60% | Hacker-Tank 21% | Scavenger-Tank 17% | Hacker-Mutant Dominant Class ---------------- Hacker-Mutant | -10/Materials Hacker-Tank | -10/Mines Hacker-Tank | -9/Materials Scavenger-Tank | -9/Mines Hacker-Tank | -9/Exiles Resources | -11 -10 -10 -9 -9 -9 ----------- Run | Yrd Mat Min Mat Min Exi Matter Collected 1862 | 250 315 62 696 308 231 Remotely . | . . . . . . Salvage Created 3720 | . 1122 173 2042 222 161 Parts 246 | . 74 20 143 6 3 Haulers Intercepted 4 | . 2 . 2 . . Recyclers Shooed . | . . . . . . Parts Field Recycled . | . . . . . . Retrieved Matter . | . . . . . . Parts Self-Destructed . | . . . . . . Prevented . | . . . . . . Kills | -11 -10 -10 -9 -9 -9 ------- Run | Yrd Mat Min Mat Min Exi Combat Hostiles Destroyed 103 | . 30 8 51 9 5 Guns 88 | . 15 8 51 9 5 Cannons 14 | . 14 . . . . Classes Destroyed 13 | . 8 . 4 1 . Worker 5 | . 1 2 2 . . Builder 2 | . 1 . . 1 . Tunneler 2 | . 1 . 1 . . Hauler 4 | . 2 . 2 . . Recycler 4 | . 1 1 1 1 . Operator 2 | . . . 2 . . Watcher 8 | . 3 . 5 . . Swarmer 19 | . 3 6 10 . . Grunt 61 | . 27 2 32 . . Brawler 1 | . . . 1 . . Duelist 1 | . . . 1 . . Sentry 7 | . . . 7 . . Assembled 13 | . . . . 9 4 Best Kill Streak 7 | . 5 5 7 5 4 Combat Bots Only 5 | . 5 3 5 5 4 Max Kills in Single Turn 3 | . 2 3 2 1 1 Gunslinging 2 | . . 2 1 . . Exploded . | . . . . . . Melee . | . . . . . . Uniques/NPCs Destroyed 1 | . . . . . 1 8R-AWN (-9/Exiles) Combat | -11 -10 -10 -9 -9 -9 -------- Run | Yrd Mat Min Mat Min Exi Hostile Shots Fired 329 | . 111 34 119 21 44 Missed 98 | . 32 9 40 6 11 Hits 231 | . 79 25 79 15 33 Melee 9 | . . . 1 6 2 Projectile 222 | . 79 25 78 9 31 Critical Strikes 24 | . . 2 1 . 21 Damage Taken 2548 | . 782 161 779 241 585 Core 1714 | . 563 94 494 147 416 Absorbed by Shields . | . . . . . . Redirected to Core 1371 | . 435 82 420 133 301 Redirected to Shielding 4 | . 4 . . . . Ignored by Resistances 758 | . 238 53 236 68 163 Core Remaining (%) 100 | 100 . 100 . . . Volleys Fired 237 | . 94 17 87 16 23 Largest 3 | . 3 3 3 3 3 Hottest 168 | . 168 168 145 69 69 Shots Fired 625 | . 198 51 261 48 67 Gun 583 | . 156 51 261 48 67 Cannon 42 | . 42 . . . . Launcher . | . . . . . . Special . | . . . . . . Kinetic 497 | . 139 3 240 48 67 Thermal 128 | . 59 48 21 . . Explosive . | . . . . . . Electromagnetic . | . . . . . . Robot Hit Streak 34 | . 29 18 34 11 21 Robot Miss Streak 3 | . 3 2 3 2 2 Penetration Max . | . . . . . . Secondary Targets 22 | . 3 3 14 1 1 Max Gunslinging Chain 2 | . 1 2 2 1 1 Shots Hit Robots 462 | . 151 35 187 31 58 Core Hits 195 | . 66 15 82 16 16 Critical Kills 1 | . . . . 1 . Critical Parts Destroyed 1 | . . . . 1 . Critical Strikes 8 | . 5 . 1 2 . Burn 6 | . 5 . 1 . . Destroy 2 | . . . . 2 . Melee Attacks . | . . . . . . Impact . | . . . . . . Slashing . | . . . . . . Piercing . | . . . . . . Sneak Attacks . | . . . . . . Combat Hostiles . | . . . . . . Follow-up Attacks . | . . . . . . Damage Inflicted 7232 | . 1914 544 3216 570 988 Guns 6386 | . 1068 544 3216 570 988 Cannons 660 | . 660 . . . . Explosions 186 | . 186 . . . . Melee . | . . . . . . Ramming . | . . . . . . Kinetic 5530 | . 934 53 2985 570 988 Thermal 1516 | . 794 491 231 . . Explosive 186 | . 186 . . . . Electromagnetic . | . . . . . . Impact . | . . . . . . Slashing . | . . . . . . Piercing . | . . . . . . Highest Corruption . | . . . . . . Average Corruption . | . . . . . . Corruption Purged . | . . . . . . Corruption Blocked . | . . . . . . Overload Shots . | . . . . . . Overflow Damage 33 | . 33 . . . . Projectiles . | . . . . . . Explosions 33 | . 33 . . . . Melee . | . . . . . . Knockbacks 1 | . 1 . . . . Impact . | . . . . . . Kinetic 1 | . 1 . . . . Secondary . | . . . . . . Self-Inflicted Damage 91 | . 91 . . . . Shots 1 | . 1 . . . . Rammed . | . . . . . . Targets Rammed . | . . . . . . Kicked . | . . . . . . Crushed . | . . . . . . Highest Temperature 229 | . 156 229 63 . 4 Average Temperature 66 | . 63 79 22 . 4 Received Heat Transfer 879 | . 471 45 354 . 9 Siege Activations . | . . . . . . Martial Activations . | . . . . . . Shielding Activations . | . . . . . . Robots Disrupted . | . . . . . . Combat Hostiles . | . . . . . . Robots Corrupted . | . . . . . . Combat Hostiles . | . . . . . . Parts Fried . | . . . . . . Impact Corruptions . | . . . . . . Robots Melted 1 | . 1 . . . . Combat Hostiles 1 | . 1 . . . . Parts Melted 10 | . 6 2 2 . . Heat Transferred 4107 | . 2183 1258 666 . . Parts Sabotaged . | . . . . . . Parts Stolen . | . . . . . . Parts Stripped . | . . . . . . Power Chain Reactions . | . . . . . . Alert | -11 -10 -10 -9 -9 -9 ------- Run | Yrd Mat Min Mat Min Exi Maximum Alert Level 2 | . 2 . 2 . . Low Security (%) 60 | 100 59 100 23 100 . Level 1 26 | . 29 . 49 . . Level 2 13 | . 10 . 27 . . Level 3 . | . . . . . . Level 4 . | . . . . . . Level 5 . | . . . . . . High Security . | . . . . . . Max Security . | . . . . . . Sterilizations 1 | . . . 1 . . Peak Influence 552 | . 437 134 552 128 . Initial 128 | . . 127 10 128 . Average 184 | . 188 89 311 21 . Influence Increases 2713 | . 917 207 1579 10 . Destroy 0b10 Robot/C 1780 | . 600 160 1020 . . Destroy 0b10 Robot/NC 135 | . 45 15 65 10 . Destroy Leader 384 | . 130 30 224 . . Allied During Kill 1 | . . 1 . . . Successful Hack 30 | . 18 . 12 . . Select Force Hacks 310 | . 100 . 210 . . Disable Machine 36 | . 9 . 27 . . Destroy Structure 22 | . 15 1 6 . . Lose Combat Pursuer 15 | . . . 15 . . Influence Decreases 2713 | . 530 560 1224 399 . Entered New Map 545 | . . 260 24 261 . Time Decay 1718 | . 530 300 750 138 . Purge Threat 450 | . . . 450 . . Squads Dispatched 17 | . 9 . 8 . . Investigation 16 | . 9 . 7 . . Extermination . | . . . . . . Reinforcement 1 | . . . 1 . . Assault . | . . . . . . Garrison . | . . . . . . Intercept . | . . . . . . Searches Triggered . | . . . . . . Construction Impeded . | . . . . . . Haulers Reinforced . | . . . . . . Active Scanning Responses . | . . . . . . Cargo Convoy Interrupts . | . . . . . . Stealth | -11 -10 -10 -9 -9 -9 --------- Run | Yrd Mat Min Mat Min Exi Distress Signals 5 | . 1 . 4 . . Communications Jammed . | . . . . . . Distress Signals . | . . . . . . Times Spotted 126 | . 36 8 57 17 8 Peak Tracking Total 9 | . 3 3 6 6 9 Tactical Retreats 3 | . . . 1 2 . Traps | -11 -10 -10 -9 -9 -9 ------- Run | Yrd Mat Min Mat Min Exi Traps Triggered 3 | . 1 . 2 . . Indirectly . | . . . . . . Trap Hack Attempts . | . . . . . . Triggered . | . . . . . . Disarmed . | . . . . . . Reprogrammed . | . . . . . . Reused . | . . . . . . Traps Extracted . | . . . . . . Installed . | . . . . . . Triggered . | . . . . . . Machines | -11 -10 -10 -9 -9 -9 ---------- Run | Yrd Mat Min Mat Min Exi Machines Disabled 6 | . 1 . 3 . 2 Max in Single Turn 2 | . 1 . 2 . 1 Machines Repaired . | . . . . . . Machines Dismantled . | . . . . . . Machines Sabotaged 5 | . 2 . 3 . . Overloaded Fab Kills . | . . . . . . Hacking | -11 -10 -10 -9 -9 -9 --------- Run | Yrd Mat Min Mat Min Exi Machines Accessed 22 | . 9 1 11 . 1 Terminals 16 | . 7 . 9 . . Fabricators . | . . . . . . Repair Stations 1 | . 1 . . . . Recycling Units 2 | . 1 . 1 . . Scanalyzers 1 | . . . 1 . . Garrison Access . | . . . . . . Total Hacks 44 | . 14 1 28 . 1 Successful 30 | . 12 1 16 . 1 Failed 14 | . 2 . 12 . . Catastrophic 4 | . . . 4 . . Database Lockouts . | . . . . . . Manual 42 | . 17 . 24 . 1 Terminals 36 | . 10 . 26 . . Fabricators . | . . . . . . Repair Stations 1 | . 1 . . . . Recycling Units 4 | . 3 . 1 . . Scanalyzers 1 | . . . 1 . . Garrison Access . | . . . . . . Terminal Hacks 12 | . 2 1 8 . 1 Record 1 | . . . 1 . . Robot Analysis 2 | . 1 . 1 . . Open Door 1 | . . 1 . . . Alert Level 2 | . . . 2 . . Unreport Threat 3 | . . . 3 . . Hauler Manifests 2 | . 1 . 1 . . Proto ID Catalog 1 | . . . . . 1 Fabricator Hacks . | . . . . . . Repair Station Hacks . | . . . . . . Recycling Unit Hacks . | . . . . . . Scanalyzer . | . . . . . . Garrison Access Hacks . | . . . . . . Unauthorized Hacks 18 | . 10 . 8 . . Terminals 13 | . 7 . 6 . . Sabotage 13 | . 7 . 6 . . Fabricators . | . . . . . . Repair Stations 1 | . 1 . . . . Patch 1 | . 1 . . . . Recycling Units 3 | . 2 . 1 . . Reject 1 | . 1 . . . . Mask 1 | . 1 . . . . Tunnel 1 | . . . 1 . . Scanalyzers 1 | . . . 1 . . Extract 1 | . . . 1 . . Garrison Access . | . . . . . . Data Cores Recovered 2 | . . . 2 . . Used . | . . . . . . Hacking Detections 9 | . 3 . 6 . . Full Trace Events 3 | . 1 . 2 . . Feedback Events . | . . . . . . Feedback Blocked . | . . . . . . Robot Schematics Acquired . | . . . . . . Robots Built . | . . . . . . Authchips . | . . . . . . Time . | . . . . . . Total Robot Build Rating . | . . . . . . Part Schematics Acquired 1 | . . . 1 . . Parts Built . | . . . . . . Authchips . | . . . . . . Time . | . . . . . . Total Part Build Rating . | . . . . . . Parts Repaired . | . . . . . . Time . | . . . . . . Parts Recycled . | . . . . . . Recycled Matter . | . . . . . . Retrieved Matter . | . . . . . . Retrieved Components . | . . . . . . Parts Scanalyzed . | . . . . . . Part Schematics Acquired . | . . . . . . Parts Damaged . | . . . . . . Bothacking | -11 -10 -10 -9 -9 -9 ------------ Run | Yrd Mat Min Mat Min Exi Used RIF Installer . | . . . . . . Robots Hacked . | . . . . . . Non-combat . | . . . . . . Combat . | . . . . . . Robot Hacks Applied . | . . . . . . Relay Couplers Released . | . . . . . . Fabnet Peak Effective % . | . . . . . . Robots Rewired . | . . . . . . Allies Hacked . | . . . . . . Hacks Repelled . | . . . . . . Allies | -11 -10 -10 -9 -9 -9 -------- Run | Yrd Mat Min Mat Min Exi Total Allies 4 | . . 1 . 3 . Largest Group 3 | . . 1 . 3 3 Highest-Rated Group 40 | . . 31 . 40 40 Highest-Rated Ally 31 | . . 31 . 16 16 Total Orders 3 | . . . . . 3 STAY 3 | . . . . . 3 Ally Attacks 44 | . . . . . 44 Total Damage 373 | . . . . . 373 Kills 3 | . . . . . 3 Allies Corrupted . | . . . . . . Allies Melted . | . . . . . . Intel | -11 -10 -10 -9 -9 -9 ------- Run | Yrd Mat Min Mat Min Exi Active Infowar (turns) . | . . . . . . Robot Analysis Total 2 | . 1 . 1 . . Derelict Logs Recovered 5 | . . 2 . 3 . Drone Launches . | . . . . . . Drone Recoveries . | . . . . . . Exploration | -11 -10 -10 -9 -9 -9 ------------- Run | Yrd Mat Min Mat Min Exi Turns Passed 4874 | 36 1128 613 1536 836 725 Spaces Moved 4048 | 36 987 615 1068 628 714 Core 1 | 1 . . . . . Treads . | . . . . . . Legs 1628 | . . . 729 628 271 Wheels 1976 | 35 987 615 339 . . Hover . | . . . . . . Flight 443 | . . . . . 443 Fastest Speed 50 | 50 80 80 80 120 50 Average Speed 92 | 79 80 80 107 120 76 Slowest Speed 120 | 80 95 80 120 120 120 Overloaded Moves . | . . . . . . Propulsion Burnouts . | . . . . . . Robots Hopped . | . . . . . . Potential Cave-ins . | . . . . . . Cave-ins Triggered . | . . . . . . Exploration Rate (%) 75 | 3 99 98 86 98 68 Regions Visited 5 Branch Regions 3 Pre-discovered Areas 2 | . . . 1 1 . Known Exits Taken 1 | . . . . 1 . Unknown Exits Taken 4 | 1 1 1 1 . . Scrap Searched 2 | . . 1 . 1 . Spaces Dug . | . . . . . . Terrain Destroyed 17 | . 13 1 2 1 . Melee . | . . . . . . Projectile 4 | . . 1 2 1 . AOE 13 | . 13 . . . . Terrain Rammed . | . . . . . . Walls Destroyed . | . . . . . . Machines Disabled . | . . . . . . Actions | -11 -10 -10 -9 -9 -9 --------- Run | Yrd Mat Min Mat Min Exi Total 4674 | 40 1154 697 1260 674 849 Wait 198 | . 15 47 42 27 67 Move 4043 | 35 986 614 1067 627 714 Hop . | . . . . . . Pick Up 19 | . 2 2 2 . 13 Fast Attach 23 | 5 9 3 1 2 3 Attach . | . . . . . . Detach . | . . . . . . Swap 19 | . 6 1 11 . 1 Drop 38 | . 6 4 7 1 20 Fire 237 | . 94 17 87 16 23 Melee . | . . . . . . Ram . | . . . . . . Kick . | . . . . . . Crush . | . . . . . . Escape Stasis . | . . . . . . Rewire . | . . . . . . Trap . | . . . . . . Miscellaneous 97 | . 36 9 43 1 8 Route ------- -11/Scrapyard -10/Materials (discovered 5 exits: *Mat x3 / *Min x2) -10/Mines (discovered 2 exits: *Mat x2) -9/Materials (discovered 4 exits: [*Mat x3] / [*Min]) -9/Mines (discovered 4 exits: [*Mat x2] / *Exi / [*Zio]) -9/Exiles History --------- Turn | Location | Event 1 | -11/Scrapyard | Upgraded with Power slot (x1) 1 | -11/Scrapyard | Upgraded with Propulsion slot (x1) 1 | -11/Scrapyard | Upgraded with Utility slot (x1) 1 | -11/Scrapyard | Upgraded with Weapon slot (x1) 9 | -11/Scrapyard | Discovered new exit (range 16) 37 | -11/Scrapyard | Entered Materials 106 | -10/Materials | Discovered new exit (range 10) 108 | -10/Materials | Discovered new exit (range 11) 303 | -10/Materials | Build established: Hacker-Mutant 319 | -10/Materials | Discovered new exit (range 8) 389 | -10/Materials | Discovered new exit (range 3) 525 | -10/Materials | Discovered new exit (range 8) 571 | -10/Materials | Reached level 2 821 | -10/Materials | Reached level 3 846 | -10/Materials | Upgraded with Propulsion slot (x1) 846 | -10/Materials | Upgraded with Utility slot (x1) 846 | -10/Materials | Upgraded with Weapon slot (x1) 1165 | -10/Materials | Entered Mines 1167 | -10/Mines | Build established: Hacker-Tank 1167 | -10/Mines | Reached level 4 1195 | -10/Mines | YI-UF0 nonchalantly dropped a Grenade Launcher on the ground 1216 | -10/Mines | Found the Drone Emporium 1230 | -10/Mines | Found Prototype Device 1230 | -10/Mines | Identified Bomb Drone Bay 1267 | -10/Mines | Found a hidden stash of uninstalled traps 1296 | -10/Mines | Learned Materials stockpile data 1305 | -10/Mines | Discovered new exit (range 9) 1339 | -10/Mines | Discovered new exit (range 13) 1362 | -10/Mines | Received a Rocket Launcher from a helpful Derelict 1465 | -10/Mines | A weapon hastily lodged in a ceiling crevice suddenly fell to the ground 1517 | -10/Mines | Received a Mining Laser from a helpful Derelict 1588 | -10/Mines | Met a Derelict testing a Signal Generator 1591 | -10/Mines | Found Signal Generator 1653 | -10/Mines | Learned Materials security intel 1778 | -10/Mines | Entered Materials 1780 | -9/Materials | Reached level 5 1862 | -9/Materials | Reached level 6 2008 | -9/Materials | Discovered new exit (range 4) 2094 | -9/Materials | Discovered new exit (range 3) 2228 | -9/Materials | Reached level 7 2431 | -9/Materials | Discovered new exit (range 14) 2593 | -9/Materials | Reached level 8 3013 | -9/Materials | Reached level 9 3168 | -9/Materials | Sterilization system engaged 3168 | -9/Materials | Non-combat units ordered to evacuate 3216 | -9/Materials | Discovered new exit (range 6) 3268 | -9/Materials | Combat units ordered to evacuate 3314 | -9/Materials | Entered Mines 3323 | -9/Mines | Identified exit to Exiles 3398 | -9/Mines | Assembled infested the area 3403 | -9/Mines | Assisted by a Guerilla fighting off Assembled 3532 | -9/Mines | Upgraded with Utility slot (x1) 3744 | -9/Mines | Discovered new exit (range 7) 3756 | -9/Mines | Discovered new exit (range 8) 3804 | -9/Mines | Learned Materials garrison access intel 3909 | -9/Mines | Learned location of Storage (-8) 3929 | -9/Mines | Build established: Scavenger-Tank 3963 | -9/Mines | Deemed a non-threat by the Exiles lab entrance 3989 | -9/Mines | A Derelict revealed a hidden shortcut to a safe place 4111 | -9/Mines | Assisted by bots powering up and referring to "LRC-V3" 4150 | -9/Mines | Entered Exiles 4150 | -9/Exiles | Accompanied by 3 allies 4179 | -9/Exiles | Met 8R-AWN 4200 | -9/Exiles | Met EX-HEX 4233 | -9/Exiles | Met EX-BIN 4251 | -9/Exiles | Met EX-DEC 4471 | -9/Exiles | Aligned with FarCom system 4472 | -9/Exiles | Given EX-Vault access code 4501 | -9/Exiles | Opened EX-Vault 4507 | -9/Exiles | Upgraded with Propulsion slot (x1) 4508 | -9/Exiles | Found Flying Fortress v7 4519 | -9/Exiles | Warned to stay clear of 0b10 Research branches 4717 | -9/Exiles | Attacked by the Exiles 4756 | -9/Exiles | Core integrity fell below 50% 4800 | -9/Exiles | Build established: Hacker-Tank 4860 | -9/Exiles | Destroyed 8R-AWN 4866 | -9/Exiles | Found Prototype Processor 4866 | -9/Exiles | Identified Exp. Targeting Computer 4875 | -9/Exiles | Self-destructed Last Messages --------------- 04853_ HV Slug penetrates Earth. 04853_ Penetrated by HV Slug. 04853_ Critical hit (Destroy). 04855_ Extracted 9 matter. 04855_ Penetrated by HV Slug. 04857_ Destroyed Prototype Device. 04858_ Extracted 9 matter. 04858_ HV Slug penetrates Earth. 04858_ Penetrated by HV Slug. 04858_ Critical hit (Destroy). 04860_ Penetrated by HV Slug. 04860_ 8R-AWN destroyed. 04861_ Extracted 9 matter. 04866_ Acquired Prototype Processor. 04866_ Identified Exp. Targeting Computer. 04868_ Dropped Flying Fortress v7. 04868_ Acquired Prototype Leg. 04868_ Identified Adv. Myomer Leg. 04870_ Acquired 20 matter. 04873_ Acquired Adv. Myomer Leg. Map ----- +----------------------------------------------------+ | ?????????????????????????????????????????????????? | | ?????????????????????????????????????????????????? | | ?????????????????????????????????????????????????? | | ?????????????????????????????????????????????????? | | ?????????????????????????????????????????????????? | | ?????????????????????????????????????????????????? | | ?????????????????????????????????????????????????? | | ?????????????????????????????????????????????????? | | ?????????????????????????????????????????????????? | | ?????????????????????????????????????????????????? | | ?????????????????????????????????????????????????? | | ?????????????????????????????????????????????????? | | ?????????????????????????????????????????????????? | | ????????????? ???????????????????????????????????? | | ???????????? ??????????????#######?????????????? | | ???????????? ######???????#!!! "#?????????????? | | ??????????? #""#??????# "#?????????????? | | ???????????? ??????# "#?????????????? | | ????????????#" #????## ""#???????????### | | ????????????"" #####" ""#??????????? | | ??????????????# ##" ""#??????????#"" | | ???????????????# #"" #????????????#"" | | ??????????????????# #????????????#"" | | ?????????????????????# ##???????????#"" | | ?????????????????????### #???????????# | | ???????????????########!%@ ###??????????"" | | ???????????????# ""= %!! ##??????????# | | ???????????????#! &%* =%%! ##; ######???### | | ???????????????#g =[= !%! ##"" ""#####X# | | ???????????????#! [ !!#####" | | ???????????????# "" "" ;;#???#"# | | ???????????????##;####;#;# #??#### | | ????????????????##???### # #?????##" * | | ???????????????????????# # #??????#### | | ???????????????????????# ###?????????## | | ???????????????????????# #????????????## | | ???????????????????????# #?????????????##" | | ???????????????????????# #??????????????#""" | | ???????????????????????? #?????????????##" | | ???????????????????????? #?????????????#"" | | ???????????????????????? ??????????????#""" | | ???????????????????????? ?????????????#""" | | ???????????????????????? ?????????????#""" | | ???????????????????????? ?????????????#"" | | ???????????????????????? ?????????????#""" | | ??????????????????????????????????????#"" | | ??????????????????????????????????????##"" | | ???????????????????????????????????????#"""" | | ????????????????????????????????????????# | | ????????????????????????????????????????#" | +----------------------------------------------------+ Best States ------------- Heat Dissipation 75 Energy Generation 18 Energy Capacity 400 Matter Stores 300 Matter Capacity 300 Sight Range 16 Terrain Scan Density 10 Armor Coverage 675 Resistance: KI 20 Resistance: TH 20 Resistance: EX 20 Resistance: EM 20 Resistance: I 20 Resistance: S 20 Resistance: P 20 Propulsion Shielding 33 Evasion (%) 60 Targeting Accuracy 12 Offensive Hacking 15 Defensive Hacking 5 Item Schematics ----------------- Shield Generator | -9/Materials | Extracted Robot Schematics ------------------ None Fabricated ------------ Nothing Repaired ---------- Nothing Alien Tech Used ----------------- None Achievements -------------- None Challenges ------------ None RPGLIKE | -11 -10 -10 -9 -9 -9 --------- Run | Yrd Mat Min Mat Min Exi Levels Raised 8 | . 2 1 5 . . XP Earned 17347 | 4000 4221 1450 7263 244 169 XP Spent 14600 | 3700 3150 750 4100 1800 1100 Upgrades 30 | 14 5 1 6 3 1 Power Slot 1 | 1 . . . . . Propulsion Slot 3 | 1 1 . . . 1 Utility Slot 3 | 1 1 . . 1 . Weapon Slot 2 | 1 1 . . . . Heat Dissipation 6 | 6 . . . . . Mass Support 2 | . . . . 2 . Inventory Capacity 3 | . 2 1 . . . Ranged Accuracy 4 | . . . 4 . . Hack Attack % 1 | 1 . . . . . Hack Defense % 1 | 1 . . . . . KI Damage % 4 | 2 . . 2 . . Protomatter Created 1286 | . 509 123 626 4 24 Integrity Restored 1898 | . 727 148 855 12 156 Core 1296 | . 553 104 471 12 156 Parts 602 | . 174 44 384 . . Protomatter Decayed 503 | . 104 111 288 . . Game ------ Seed LightMetafieldEngine Manual? 0 Play Time 00:34:40 Cumulative 381.3 hours Start 2025.09.25 @ 20:58:40 End 2025.09.25 @ 21:31:17 Sessions 1 Manual Loads 0 Difficulty Adventurer Special Mode Winter2019/RPGLIKE Game No. 141 Rogue 0 Adventurer 141 Explorer 0 Win Type - Total 14 Types 2/3/3/3/1/0/0/0/1/1 Lore% 91 Gallery% 81 Achievement% 82 Wizard Run 0 Options --------- Layout 2 ASCII 0 Keyboard 0 Movement Numpad Keybinds 0 Fullscreen 2 Font 24/Smallcaps Map View 50x44 Zoom Use 0% Tactical HUD 1 Map Filters NONE Filters NONE Steam 1 RUN: f9c518f9-8840-4e7a-8107-ebc88ff2a7b5